bitfinex/quotes_SOLUSD_20250919
["timestamp","ask_amount","ask_price","bid_price","bid_amount"]
[1758292242395,5.35040958,242.22,242.21,0.1]
[1758292244306,6.87746509,242.22,242.21,0.1]
[1758292245595,5.35040958,242.22,242.21,0.1]
[1758292245884,4.35040958,242.22,242.21,0.1]
[1758292246101,3.64040958,242.22,242.21,0.1]
[1758292246300,3.64040958,242.22,242.21,32.4]
[1758292246491,132.0,242.26,242.21,36.52864869]
[1758292246702,1.03219487,242.25,242.21,36.52864869]
[1758292247297,1.03219487,242.25,242.22,0.44]
[1758292247698,132.0,242.26,242.22,0.44]
[1758292248389,3.47801255,242.31,242.23,0.44]
[1758292248601,1.74204568,242.3,242.24,31.86]
[1758292249123,0.71,242.3,242.23,0.44]
[1758292249297,0.71,242.29,242.24,31.86]
[1758292249497,0.71,242.28,242.24,31.86]
[1758292250903,1.03201424,242.3,242.25,0.44]
[1758292251110,2.53538791,242.32,242.26,0.44]
[1758292251111,1.71,242.32,242.26,0.44]
[1758292251402,1.03194119,242.31,242.27,31.86]
[1758292251608,1.0,242.32,242.28,32.3]
[1758292252007,1.0,242.32,242.29,0.44]
[1758292252532,1.0,242.32,242.3,4.5670015]
[1758292252728,1.0,242.32,242.31,31.86]
[1758292254523,1.0,242.32,242.3,4.12710213]
[1758292254710,1.0,242.32,242.31,31.86]
[1758292255624,1.66,242.32,242.31,31.84]
[1758292255831,1.0,242.32,242.31,31.84]
[1758292259534,2.4953549,242.32,242.31,31.84]
[1758292259920,1.4953549,242.32,242.31,31.84]
[1758292260433,0.67,242.32,242.31,31.84]
[1758292261031,2.77113243,242.37,242.31,31.84]
[1758292261413,1.52705551,242.39,242.32,0.44]
[1758292261414,3.59625803,242.39,242.32,0.44]
[1758292261604,2.77113243,242.39,242.32,0.44]
[1758292261808,132.0,242.4,242.32,0.72432314]
[1758292262032,132.0,242.4,242.33,4.12660421]
[1758292262330,132.0,242.4,242.34,32.44]
[1758292262923,132.0,242.4,242.35,4.12626366]
[1758292263419,13.32554077,242.47,242.36,0.72432314]
[1758292263420,0.67,242.45,242.36,0.72432314]
[1758292263619,11.26340007,242.47,242.39,0.28432314]
[1758292263822,0.2,242.49,242.41,0.28432314]
[1758292264020,2.96517626,242.49,242.41,0.72432314]
[1758292264240,0.67,242.48,242.42,32.04]
[1758292264544,0.67,242.47,242.43,32.04]
[1758292264912,0.67,242.47,242.39,11.26340007]
[1758292264913,0.82491235,242.45,242.39,11.26340007]
[1758292265115,0.82491235,242.45,242.4,32.02]
[1758292265116,0.67,242.44,242.4,32.02]
[1758292265835,3.02192516,242.47,242.4,32.02]
[1758292266019,1.49486965,242.47,242.4,32.46]
[1758292266442,0.67,242.46,242.4,32.02]
[1758292266830,0.82486965,242.47,242.41,32.02]
[1758292267937,0.2,242.49,242.42,0.44]
[1758292268140,0.2,242.49,242.42,0.72432314]
[1758292268326,0.2,242.49,242.43,0.44]
[1758292269723,0.2,242.49,242.46,32.14]
[1758292270145,0.2,242.49,242.46,32.58]
[1758292270316,0.2,242.49,242.46,36.7042449]
[1758292270523,0.2,242.49,242.46,4.5642449]
[1758292270722,0.2,242.49,242.47,32.14]
[1758292271040,0.2,242.49,242.45,0.28432314]
[1758292271216,0.67,242.48,242.43,0.28432314]
[1758292271420,0.67,242.47,242.44,32.14]
[1758292271640,0.67,242.46,242.43,26.28432314]
[1758292271845,1.02478062,242.49,242.44,32.14]
[1758292272020,0.67,242.48,242.44,32.14]
[1758292272227,1.02478062,242.49,242.44,32.14]
[1758292272554,1.02478062,242.49,242.38,13.59559401]
[1758292272555,0.67,242.48,242.38,13.59559401]
[1758292272844,2.19705551,242.47,242.39,32.14]
[1758292273046,0.67,242.46,242.39,32.14]
[1758292273352,1.52705551,242.47,242.38,26.0]
[1758292273648,2.19705551,242.45,242.39,32.14]
[1758292273863,1.52705551,242.45,242.35,13.59559401]
[1758292274025,1.52705551,242.43,242.33,36.26646769]
[1758292274343,2.35210398,242.41,242.33,32.14]
[1758292274533,0.67,242.4,242.33,32.14]
[1758292274736,1.52705551,242.39,242.33,32.14]
[1758292274935,2.19705551,242.39,242.33,32.14]
[1758292276435,0.82515058,242.38,242.33,32.14]
[1758292276641,2.35206994,242.42,242.34,0.72432314]
[1758292277038,0.67,242.41,242.34,0.72432314]
[1758292277251,2.19705551,242.41,242.34,0.72432314]
[1758292277445,1.52705551,242.39,242.34,0.28432314]
[1758292277752,1.52705551,242.4,242.34,0.28432314]
[1758292278049,1.52705551,242.38,242.29,0.44]
[1758292278249,2.19705551,242.37,242.31,32.12]
[1758292278454,0.82521868,242.36,242.31,32.12]
[1758292278859,2.88826538,242.36,242.31,32.12]
[1758292279045,2.88826538,242.36,242.3,32.1]
[1758292279435,0.82521868,242.36,242.31,0.44]
[1758292279635,0.82521868,242.36,242.32,0.44]
[1758292279830,0.82521868,242.36,242.3,32.1]
[1758292280035,2.88826538,242.36,242.3,32.1]
[1758292280235,5.08532089,242.36,242.3,32.1]
[1758292280449,3.55826538,242.36,242.3,32.1]
[1758292281354,2.88826538,242.36,242.3,32.1]
[1758292282640,3.55826538,242.36,242.3,32.1]
[1758292283658,5.08532089,242.36,242.3,32.1]
[1758292284162,4.41532089,242.36,242.3,32.08]
[1758292284336,4.41532089,242.36,242.26,14.03559401]
[1758292284337,1.52705551,242.33,242.27,0.28432314]
[1758292284662,0.82538896,242.31,242.28,32.08]
[1758292286257,0.82535044,242.33,242.28,32.08]
[1758292286465,132.0,242.41,242.29,0.72432314]
[1758292286638,3.54785934,242.4,242.31,0.28432314]
[1758292286838,3.54785934,242.4,242.32,32.5]
[1758292289558,1.52705551,242.39,242.32,32.5]
[1758292289761,132.0,242.41,242.33,1.13698356]
[1758292289952,0.82491235,242.45,242.35,0.28432314]
[1758292290261,0.66,242.44,242.37,0.28432314]
[1758292291362,0.82491235,242.45,242.38,0.44]
[1758292291363,0.8249804,242.43,242.38,0.44]
[1758292291765,0.66,242.42,242.37,0.28432314]
[1758292292264,2.88743141,242.43,242.37,0.28432314]
[1758292293675,0.8249804,242.43,242.37,0.28432314]
[1758292294655,1.48496037,242.44,242.37,4.85022568]
[1758292294862,1.48496037,242.44,242.37,0.72432314]
[1758292295048,1.48496037,242.44,242.37,4.85018861]
[1758292295454,0.82496037,242.44,242.37,4.85018861]
[1758292295662,0.82491365,242.45,242.38,0.44]
[1758292295965,0.66,242.44,242.37,58.46432314]
[1758292296154,0.82491365,242.45,242.38,0.28432314]
[1758292296361,0.82491365,242.45,242.38,0.72432314]
[1758292297165,2.88719453,242.45,242.38,0.28432314]
[1758292297389,0.66,242.44,242.38,0.28432314]
[1758292297575,0.8249804,242.43,242.38,32.46432314]
[1758292297957,0.66,242.42,242.38,32.46432314]
[1758292298842,1.48502799,242.42,242.38,0.28432314]
[1758292299046,0.66,242.41,242.36,32.16]
[1758292299266,0.66,242.4,242.36,32.16]
[1758292300185,0.82511654,242.39,242.36,32.16]
[1758292301575,0.82507593,242.41,242.36,32.16]
[1758292302067,0.82507593,242.41,242.36,32.6]
[1758292302274,0.82507593,242.41,242.36,32.16]
[1758292302659,0.82507593,242.41,242.36,32.6]
[1758292302862,1.48507593,242.41,242.36,32.16]
[1758292303462,0.66,242.4,242.36,32.14]
[1758292303664,1.4850104,242.43,242.36,32.58]
[1758292304060,1.4850104,242.43,242.36,32.14]
[1758292304575,0.8250104,242.43,242.36,32.14]
[1758292304779,0.66,242.42,242.36,32.14]
[1758292305463,0.66,242.41,242.36,32.14]
[1758292306467,3.54746141,242.43,242.36,32.58]
[1758292306782,2.88766964,242.41,242.36,32.14]
[1758292306966,0.66,242.4,242.36,32.14]
[1758292307169,0.66,242.39,242.36,32.14]
[1758292307464,0.66,242.39,242.33,0.72432314]
[1758292307672,0.66,242.38,242.34,32.62]
[1758292308259,0.66,242.4,242.34,32.62]
[1758292308965,0.82511654,242.39,242.34,32.62]
[1758292309896,26.66,242.43,242.35,0.72432314]
[1758292310097,2.76793686,242.42,242.35,0.72432314]
[1758292310476,1.4849829,242.43,242.35,0.72432314]
[1758292310787,4.25458579,242.43,242.35,0.72432314]
[1758292310997,4.25458579,242.43,242.35,4.41045431]
[1758292311285,4.25458579,242.43,242.36,0.44]
[1758292311488,1.4849829,242.43,242.35,4.85045431]
[1758292311690,0.66,242.42,242.31,40.03559401]
[1758292311907,0.66,242.41,242.32,32.86432314]
[1758292312197,0.66,242.4,242.32,33.30432314]
[1758292312996,0.82511654,242.39,242.32,33.30432314]
[1758292313391,0.66,242.38,242.32,32.86432314]
[1758292314384,0.82518463,242.37,242.32,32.86432314]
[1758292314603,0.66,242.36,242.29,26.0]
[1758292314776,0.66,242.36,242.31,32.56]
[1758292315293,0.69,242.35,242.31,32.56]
[1758292315496,0.69,242.34,242.31,32.56]
[1758292316591,1.51531525,242.34,242.31,32.56]
[1758292316787,0.69,242.34,242.31,32.56]
[1758292316993,1.51521868,242.36,242.31,32.56]
[1758292317290,0.82521868,242.36,242.31,33.0]
[1758292317474,1.51521868,242.36,242.31,32.56]
[1758292318293,0.69,242.35,242.31,32.56]
[1758292318879,0.82528678,242.34,242.31,32.56]
[1758292319087,0.71,242.33,242.31,32.56]
[1758292319987,2.76974164,242.37,242.31,32.56]
[1758292319988,1.53521868,242.36,242.31,32.56]
[1758292320198,0.71,242.35,242.31,32.56]
[1758292320377,0.71,242.34,242.31,32.56]
[1758292321390,3.59826538,242.36,242.31,32.56]
[1758292321586,0.82528678,242.34,242.31,32.56]
[1758292321990,1.53528678,242.34,242.31,32.56]
[1758292324402,0.71,242.33,242.26,2.15352967]
[1758292324697,0.71,242.33,242.27,0.28432314]
[1758292324877,0.82538896,242.31,242.27,0.28432314]
[1758292325076,0.71,242.3,242.27,0.28432314]
[1758292325303,0.71,242.3,242.26,34.61352967]
[1758292326386,0.71,242.29,242.26,34.61352967]
[1758292326795,0.71,242.29,242.25,26.0]
[1758292326796,0.82549116,242.28,242.23,0.28432314]
[1758292326976,3.91811337,242.28,242.22,0.44]
[1758292327178,0.71,242.27,242.23,32.44]
[1758292327779,3.20811337,242.28,242.23,32.44]
[1758292327986,2.77383794,242.31,242.24,0.44]
[1758292328297,0.82542812,242.3,242.24,0.44]
[1758292328895,0.82542812,242.3,242.24,4.5681289]
[1758292329089,0.82542812,242.3,242.24,0.44]
[1758292330303,0.71,242.29,242.24,4.44602331]
[1758292330586,0.71,242.28,242.24,4.44602331]
[1758292330780,2.38262221,242.3,242.24,4.44602331]
[1758292331089,0.71,242.27,242.24,4.44602331]
[1758292331908,0.71,242.27,242.23,32.44]
[1758292332212,0.71,242.27,242.24,2.88886137]
[1758292332406,0.82555931,242.26,242.23,32.44]
[1758292332713,0.82555931,242.26,242.23,35.32886137]
[1758292333199,1.53555931,242.26,242.24,32.4]
[1758292333605,0.71,242.25,242.24,32.4]
[1758292334098,0.71,242.25,242.22,2.15460095]
[1758292335212,1.53562217,242.25,242.22,2.15460095]
[1758292335412,0.8255624,242.26,242.22,2.15460095]
[1758292335888,1.5355624,242.26,242.22,2.15460095]
[1758292336094,0.71,242.25,242.22,2.15460095]
[1758292336600,0.71,242.24,242.21,32.48]
[1758292337201,1.53568181,242.23,242.21,32.48]
[1758292337707,2.38262221,242.27,242.21,32.48]
[1758292338491,2.38262221,242.25,242.21,0.1]
[1758292339416,2.38262221,242.23,242.21,0.1]
[1758292339825,0.71,242.22,242.21,0.1]
[1758292340812,1.53569564,242.22,242.21,0.1]
[1758292341196,0.71,242.22,242.21,0.1]
[1758292341795,1.53569564,242.22,242.21,0.1]
[1758292343436,3.91831785,242.22,242.21,0.1]
[1758292347427,0.66,242.22,242.21,0.1]
[1758292347595,3.86831785,242.22,242.21,0.1]
[1758292351430,6.63158579,242.22,242.21,0.1]
[1758292352103,39.03158579,242.22,242.21,0.1]
[1758292353202,6.63158579,242.22,242.21,0.1]
[1758292353433,39.01158579,242.22,242.21,0.1]
[1758292353854,38.15748809,242.22,242.21,0.1]
[1758292354851,39.33221306,242.22,242.21,0.1]
[1758292360637,39.33221306,242.22,242.21,1e-08]
[1758292360848,39.33221306,242.22,242.17,561.7645994]
[1758292360849,13.73775558,242.18,242.17,561.7645994]
[1758292361053,51.04954803,242.18,242.17,561.7645994]
[1758292361647,52.08230077,242.18,242.17,561.7645994]
[1758292361844,52.90813279,242.18,242.17,561.7645994]
[1758292362046,52.88813279,242.18,242.17,561.7645994]
[1758292362437,20.54813279,242.18,242.17,561.7645994]
[1758292362763,39.29253878,242.18,242.17,561.7645994]
[1758292363271,52.88813279,242.18,242.17,479.93345424]
[1758292363470,52.88813279,242.18,242.17,461.80863056]
[1758292363763,53.98933277,242.18,242.17,452.74621872]
[1758292363961,53.98933277,242.18,242.17,434.62139504]
[1758292364142,21.64933277,242.18,242.17,352.6252214]
[1758292364349,53.98933277,242.18,242.17,352.6252214]
[1758292364869,53.98933277,242.18,242.17,352.12387714]
[1758292365069,53.98933277,242.18,242.17,288.25252718]
[1758292365463,53.16350075,242.18,242.17,287.75118292]
[1758292366166,53.44782389,242.18,242.17,276.44070997]
[1758292366335,53.44782389,242.18,242.17,251.55698854]
[1758292366537,53.44782389,242.18,242.17,232.97572236]
[1758292366775,53.44782389,242.18,242.17,223.9357614]
[1758292367271,53.44782389,242.18,242.17,185.12194966]
[1758292367469,53.44782389,242.18,242.17,184.6206054]
[1758292367663,53.44782389,242.18,242.17,52.6206054]
[1758292367977,53.44782389,242.18,242.17,41.31013245]
[1758292368169,53.44782389,242.18,242.17,16.42641102]
[1758292368368,53.44782389,242.18,242.17,12.76795939]
[1758292368551,53.44782389,242.18,242.17,12.26661513]
[1758292368963,53.44782389,242.18,242.17,0.95614218]
[1758292369169,39.59559401,242.14,242.11,0.1]
[1758292369504,40.02207872,242.02,241.99,0.2]
[1758292369698,13.73775558,242.01,241.99,0.2]
[1758292369856,0.28432314,242.0,241.99,0.2]
[1758292370059,52.30662391,242.0,241.99,0.2]
[1758292370294,62.79296366,242.0,241.99,0.2]
[1758292370473,92.07231071,242.0,241.99,0.2]
[1758292370791,59.32983527,242.0,241.99,0.2]
[1758292371093,88.36550194,242.0,241.99,0.2]
[1758292371672,91.66585396,242.0,241.99,0.2]
[1758292372369,88.36550194,242.0,241.99,0.2]
[1758292372578,71.95868496,242.0,241.99,0.2]
[1758292374185,71.93868496,242.0,241.99,0.86]
[1758292374694,39.63868496,242.0,241.99,0.86]
[1758292374990,84.14791603,242.0,241.99,0.2]
[1758292375195,85.67644054,242.0,241.99,0.2]
[1758292376093,85.69644054,242.0,241.99,0.11267942]
[1758292377605,86.40644054,242.0,241.99,0.11267942]
[1758292378490,84.16791603,242.0,241.99,0.11267942]
[1758292378802,85.69644054,242.0,241.99,0.11267942]
[1758292379000,217.69644054,242.0,241.99,0.11267942]
[1758292379580,219.35169286,242.0,241.99,0.11267942]
[1758292380201,187.71169286,242.0,241.99,0.11267942]
[1758292380403,220.01169286,242.0,241.99,0.11267942]
[1758292380594,219.33169286,242.0,241.99,0.11267942]
[1758292380899,220.01169286,242.0,241.99,0.11267942]
[1758292381102,223.79571414,242.0,241.99,0.11267942]
[1758292381499,224.08003728,242.0,241.99,0.11267942]
[1758292381887,224.08013865,242.0,241.99,0.11267942]
[1758292383410,39.59559401,241.98,241.91,0.1]
[1758292383617,0.42648471,241.97,241.91,0.1]
[1758292383824,27.53172273,241.93,241.91,0.1]
[1758292384032,74.24947831,241.93,241.91,0.1]
[1758292384194,73.56947831,241.93,241.91,0.1]
[1758292384707,1.53172273,241.93,241.92,0.92]
[1758292384911,33.83172273,241.93,241.92,0.92]
[1758292386122,27.53172273,241.93,241.92,0.92]
[1758292386299,59.83172273,241.93,241.92,0.92]
[1758292386729,19.6057812,241.97,241.92,0.92]
[1758292386906,33.83172273,241.96,241.92,0.92]
[1758292387096,33.83172273,241.96,241.93,0.72]
[1758292387294,1.53172273,241.96,241.93,0.72]
[1758292388223,1.53172273,241.96,241.92,0.2]
[1758292388403,51.9057812,241.97,241.92,0.2]
[1758292388404,19.6057812,241.97,241.94,0.72]
[1758292389799,19.6057812,241.97,241.94,4.8532074]
[1758292390004,132.0,242.0,241.95,2.25172273]
[1758292390206,1.53172273,242.04,241.96,0.72]
[1758292390399,1.53172273,242.04,241.96,4.85288404]
[1758292390616,133.53172273,242.06,241.97,2.25172273]
[1758292390814,133.53172273,242.06,241.98,0.72]
[1758292391015,26.0,242.06,241.98,0.72]
[1758292391210,26.0,242.04,241.98,1.00432314]
[1758292391615,26.0,242.04,241.99,0.72]
[1758292392018,1.53172273,242.06,241.99,0.72]
[1758292392217,2.21172273,242.06,241.99,0.72]
[1758292392410,27.53172273,242.04,241.99,0.72]
[1758292392619,27.53172273,242.04,242.0,0.72]
[1758292392931,27.53172273,242.04,242.01,0.72]
[1758292393527,27.53172273,242.04,241.95,5.94911642]
[1758292394031,27.53172273,242.04,241.96,4.85291121]
[1758292394218,27.53172273,242.04,241.97,0.72]
[1758292394419,27.53172273,242.04,241.97,2.25172273]
[1758292394420,1.53172273,242.04,241.97,2.25172273]
[1758292394621,1.53172273,242.07,241.98,1.00432314]
[1758292394921,1.53172273,242.07,242.0,0.28432314]
[1758292395125,15.67149984,242.11,242.01,2.25172273]
[1758292395437,15.67149984,242.11,242.02,1.00432314]
[1758292395612,49.50322257,242.11,242.03,0.72]
[1758292396137,17.20322257,242.11,242.03,6.3834091]
[1758292396331,41.67149984,242.11,242.04,1.00432314]
[1758292396527,41.67149984,242.11,242.05,2.25172273]
[1758292396733,41.67149984,242.11,242.06,0.72]
[1758292397239,41.67149984,242.11,242.07,0.72]
[1758292397543,41.67149984,242.11,242.01,0.72]
[1758292397544,1.53172273,242.08,242.01,0.72]
[1758292397702,1.53172273,242.04,242.01,0.72]
[1758292397907,1.53172273,242.04,241.99,0.72]
[1758292398108,1.53172273,242.04,242.0,0.72]
[1758292398330,1.53172273,242.04,242.01,0.72]
[1758292399252,26.0,242.08,242.01,0.72]
[1758292399620,27.53172273,242.08,242.01,0.72]
[1758292400347,1.53172273,242.06,241.99,0.28432314]
[1758292400747,1.53172273,242.06,241.99,1.00432314]
[1758292401232,0.68,242.05,241.98,0.28432314]
[1758292401659,1.53172273,242.04,241.97,0.72]
[1758292401831,1.53172273,242.04,241.97,1.00432314]
[1758292402338,1.53172273,242.02,241.97,0.72]
[1758292402536,2.21172273,242.02,241.97,0.72]
[1758292402863,1.53172273,242.03,241.98,0.72]
[1758292403041,2.21172273,242.04,241.98,0.72]
[1758292403445,2.21172273,242.04,241.96,1.00432314]
[1758292403955,2.21172273,242.04,241.96,0.28432314]
[1758292404157,2.21172273,242.04,241.97,0.72]
[1758292405139,1.53172273,242.04,241.97,0.72]
[1758292405549,1.53172273,242.04,241.97,2.25172273]
[1758292406055,2.19172273,242.04,241.95,1.81604587]
[1758292406232,0.66,242.03,241.95,2.48604587]
[1758292406633,1.53172273,242.02,241.95,2.48604587]
[1758292406833,2.19172273,242.02,241.95,0.95432314]
[1758292407353,0.66,242.02,241.95,0.95432314]
[1758292408450,0.66,242.02,241.95,0.67]
[1758292409153,0.66,242.02,241.94,0.28432314]
[1758292409451,0.66,242.02,241.94,0.95432314]
[1758292409753,0.66,242.01,241.94,0.95432314]
[1758292411256,0.66,242.01,241.94,0.67]
[1758292415339,0.66,242.01,241.95,1.53172273]
[1758292415752,0.66,242.01,241.95,2.39110847]
[1758292416872,3.42405554,242.04,241.97,2.39110847]
[1758292417047,0.66,242.07,242.01,2.39110847]
[1758292417352,3.4299665,242.07,242.01,2.39110847]
[1758292417562,3.4299665,242.07,242.0,0.67]
[1758292417751,0.66,242.07,242.01,2.39110847]
[1758292417960,0.66,242.06,242.01,2.39110847]
[1758292418162,0.66,242.05,241.99,2.39110847]
[1758292419168,3.05110847,242.07,242.0,2.39110847]
[1758292419543,0.66,242.06,242.0,2.39110847]
[1758292420060,3.05110847,242.06,241.99,3.06110847]
[1758292420270,0.66,242.05,241.99,3.06110847]
[1758292428573,2.39110847,242.06,242.0,0.67]
[1758292429165,0.66,242.06,242.0,3.06110847]
[1758292429362,0.66,242.06,242.0,0.67]
[1758292429564,2.39110847,242.05,241.99,0.28432314]
[1758292429767,2.39110847,242.02,241.96,0.81216157]
[1758292429971,3.05110847,242.01,241.94,0.67]
[1758292430175,3.05110847,242.01,241.94,3.06110847]
[1758292430364,2.39110847,242.02,241.95,3.06110847]
[1758292430688,5.82546452,242.03,241.96,2.39110847]
[1758292430879,3.05110847,242.03,241.96,2.39110847]
[1758292431089,3.05110847,242.03,241.97,0.67]
[1758292431266,2.39110847,242.02,241.95,3.34543161]
[1758292431469,3.05110847,242.02,241.96,2.39110847]
[1758292431777,3.05110847,242.02,241.95,0.95432314]
[1758292431968,2.39110847,242.01,241.95,3.34543161]
[1758292432877,3.05110847,242.02,241.95,3.34543161]
[1758292433182,3.05110847,242.01,241.95,0.28432314]
[1758292433370,0.66,242.01,241.95,3.06110847]
[1758292433873,3.05110847,242.03,241.96,3.06110847]
[1758292434079,1.0332147,242.02,241.96,3.06110847]
[1758292434461,1.6932147,242.02,241.96,3.06110847]
[1758292435363,4.08432317,242.02,241.96,3.06110847]
[1758292435562,3.05110847,242.02,241.96,3.06110847]
[1758292436586,0.66,242.02,241.96,3.06110847]
[1758292436787,3.05110847,242.02,241.96,3.06110847]
[1758292437165,0.66,242.02,241.96,3.06110847]
[1758292437480,3.05110847,242.02,241.96,3.06110847]
[1758292438472,0.72,242.01,241.96,3.06110847]
[1758292439783,0.72,242.0,241.95,2.39110847]
[1758292439963,0.72,242.0,241.96,0.66]
[1758292440164,0.72,241.99,241.95,2.39110847]
[1758292440574,3.11110847,242.01,241.95,3.05110847]
[1758292440786,2.39110847,242.02,241.96,3.05110847]
[1758292440982,3.11110847,242.03,241.97,2.39110847]
[1758292441286,2.39110847,242.03,241.97,2.67543161]
[1758292441482,2.77435605,242.04,242.01,2.39110847]
[1758292441873,2.77435605,242.04,242.02,3.05110847]
[1758292442081,2.78259235,242.07,242.03,3.05110847]
[1758292442596,0.72,242.06,242.01,2.39110847]
[1758292442786,0.72,242.05,241.99,32.08]
[1758292443103,2.39110847,242.0,241.95,0.14216157]
[1758292443278,3.11110847,242.0,241.94,2.39110847]
[1758292443588,3.11110847,242.0,241.93,3.05110847]
[1758292443589,0.72,241.99,241.93,3.05110847]
[1758292444007,0.72,241.99,241.94,0.14216157]
[1758292444215,0.72,241.99,241.92,0.2]
[1758292444216,2.39110847,241.96,241.92,0.2]
[1758292444380,0.72,241.95,241.92,0.2]
[1758292444575,2.39110847,241.96,241.92,0.2]
[1758292444807,134.78259235,242.01,241.92,0.2]
[1758292444808,2.39110847,241.94,241.92,0.2]
[1758292445231,2.39110847,241.95,241.92,0.2]
[1758292445505,0.72,241.94,241.92,0.2]
[1758292445878,2.39110847,241.95,241.92,0.2]
[1758292445879,0.72,241.93,241.92,0.2]
[1758292446406,3.50259235,241.96,241.92,0.2]
[1758292446587,2.78259235,241.97,241.92,3.25110847]
[1758292447111,3.50259235,241.97,241.92,3.25110847]
[1758292448177,3.50259235,241.97,241.92,0.86]
[1758292448405,3.50259235,241.97,241.92,3.25110847]
[1758292448606,3.50259235,241.97,241.92,0.86]
[1758292448803,0.72,241.96,241.92,0.2]
[1758292449006,2.78259235,241.97,241.92,0.2]
[1758292449007,0.72,241.95,241.92,0.2]
[1758292449410,2.78259235,241.97,241.92,2.59110847]
[1758292449604,3.50259235,241.97,241.92,3.25110847]
[1758292449989,3.50259235,241.97,241.92,2.59110847]
[1758292450185,0.72,241.96,241.92,0.2]
[1758292450495,2.39110847,241.95,241.92,0.2]
[1758292450697,0.72,241.94,241.92,0.2]
[1758292451110,0.72,241.93,241.92,0.2]
[1758292453691,29.11110847,241.93,241.92,0.2]
[1758292453906,31.89191913,241.93,241.92,0.2]
[1758292456204,29.50081066,241.93,241.92,0.2]
[1758292457404,31.89191913,241.93,241.92,0.2]
[1758292461622,31.89191913,241.93,241.91,0.1]
[1758292461835,26.0,241.89,241.81,5.30939016]
[1758292462016,5.89191913,241.88,241.81,3.15110847]
[1758292462320,3.11110847,241.87,241.81,0.76]
[1758292462519,2.39110847,241.86,241.81,0.76]
[1758292462917,3.11110847,241.86,241.81,0.1]
[1758292463304,0.72,241.86,241.81,0.1]
[1758292463708,0.72,241.86,241.81,0.76]
[1758292464028,0.72,241.85,241.81,0.1]
[1758292464430,0.72,241.84,241.81,0.1]
[1758292464811,26.0,241.85,241.81,0.1]
[1758292465011,0.72,241.85,241.81,0.1]
[1758292465212,26.72,241.85,241.81,0.1]
[1758292465814,0.72,241.85,241.81,0.1]
[1758292466012,26.72,241.85,241.81,0.1]
[1758292466741,0.72,241.85,241.81,0.1]
[1758292466910,26.72,241.85,241.81,0.1]
[1758292467229,194.49194637,241.92,241.81,2.49110847]
[1758292467422,26.72,241.88,241.82,0.71]
[1758292467733,26.0,241.87,241.83,2.39110847]
[1758292468136,26.0,241.87,241.83,3.10110847]
[1758292468328,26.72,241.87,241.82,2.39110847]
[1758292469639,0.72,241.87,241.83,2.39110847]
[1758292470018,0.72,241.87,241.82,2.39110847]
[1758292470218,0.72,241.87,241.82,3.10110847]
[1758292471253,0.72,241.86,241.81,2.49110847]
[1758292471426,0.72,241.85,241.81,0.1]
[1758292472114,2.39110847,241.87,241.81,0.1]
[1758292472332,0.72,241.87,241.81,3.20110847]
[1758292472942,0.72,241.87,241.82,2.39110847]
[1758292473615,0.72,241.86,241.82,2.39110847]
[1758292474220,26.72,241.88,241.82,3.10110847]
[1758292474651,26.0,241.88,241.84,2.39110847]
[1758292474946,132.72,241.91,241.86,2.39110847]
[1758292475156,0.72,241.9,241.85,0.71]
[1758292475443,0.72,241.9,241.86,2.39110847]
[1758292475747,0.72,241.9,241.85,3.10110847]
[1758292476040,132.0,241.91,241.85,1.53164528]
[1758292476041,133.53164528,241.91,241.85,1.53164528]
[1758292476243,0.72,241.89,241.85,1.53164528]
[1758292478655,0.72,241.88,241.85,1.53164528]
[1758292478980,0.72,241.88,241.84,1.53164528]
[1758292479253,0.72,241.88,241.83,0.71]
[1758292479254,0.72,241.87,241.83,1.53164528]